fUSD/lending_fUSD_20250506
["ID","MTS","AMOUNT","RATE_DAILY","PERIOD"]
[360137718,1746563476434,-500.0,0.00032876,2]
[360137719,1746563476444,-500.0,0.00032876,2]
[360137720,1746563476454,-500.0,0.00032876,2]
[360137721,1746563476464,-416.95901014,0.00032876,2]
[360137722,1746563476474,-500.0,0.00032876,2]
[360137723,1746563476483,-406.90521523,0.00032876,2]
[360137724,1746563476493,-349.96,0.00032877,120]
[360137725,1746563476502,-1000.0,0.00032877,7]
[360137726,1746563476512,-1000.0,0.00032877,7]
[360137727,1746563476521,-1000.0,0.00032877,7]
[360137728,1746563476531,-1000.0,0.00032877,7]
[360137729,1746563476540,-151.0,0.00032877,7]
[360137730,1746563476550,-151.0,0.00032877,7]
[360137731,1746563476560,-151.0,0.00032877,7]
[360137732,1746563476569,-151.0,0.00032877,7]
[360137733,1746563476579,-151.0,0.00032877,7]
[360137734,1746563476588,-151.0,0.00032877,7]
[360137735,1746563476598,-151.0,0.00032877,7]
[360137736,1746563476608,-151.0,0.00032877,7]
[360137737,1746563476617,-151.0,0.00032877,7]
[360137738,1746563476627,-332.13,0.00032877,2]
[360137739,1746563476637,-151.0,0.00032877,7]
[360137740,1746563476647,-151.0,0.00032877,7]
[360137741,1746563476656,-151.0,0.00032877,7]
[360137742,1746563476666,-225.695014,0.00032877,7]
[360137743,1746563476676,-9560.41,0.00032877,2]
[360137744,1746563476685,-267.603361,0.00032877,7]
[360137745,1746563476695,-151.0,0.00032877,7]
[360137746,1746563476705,-293.95395053,0.00032877,2]
[360137747,1746563476714,-955.83068996,0.000329,30]
[360137748,1746563476724,-2000.0,0.000329,2]
[360137749,1746563476734,-158.74,0.00032904,30]
[360137750,1746563476744,-162.0,0.00032998,7]
[360137751,1746563476753,-331.0,0.00032998,14]
[360137752,1746563476763,-153.0,0.00032998,7]
[360137753,1746563476773,-388.64,0.00032998,7]
[360137754,1746563476782,-161.0,0.00032998,7]
[360137755,1746563476791,-290.0,0.00032998,7]
[360137756,1746563476801,-196.0,0.00032998,7]
[360137757,1746563476810,-4564.02617384,0.00033,2]
[360137758,1746563476820,-25156.01384162,0.00033,2]
[360137759,1746563476830,-500.0,0.00033,4]
[360137760,1746563476839,-1800.0,0.00033,34]
[360137761,1746563476848,-433.59326533,0.00033,120]
[360137762,1746563476858,-36744.14,0.00033,2]
[360137763,1746563476868,-650.0,0.00033,2]
[360137764,1746563476877,-500.0,0.00033,5]
[360137765,1746563476886,-213.0,0.00033,2]
[360137766,1746563476895,-1000.0,0.00033014,7]
[360137767,1746563476905,-1000.0,0.00033014,7]
[360137768,1746563476915,-1000.0,0.00033014,7]
[360137769,1746563476924,-1000.0,0.00033014,7]
[360137770,1746563476934,-216.91168396,0.000331,2]
[360137771,1746563476945,-160.0,0.000331,41]
[360137772,1746563476955,-1000.0,0.00033151,7]
[360137773,1746563476964,-1000.0,0.00033151,7]
[360137774,1746563476974,-1000.0,0.00033151,7]
[360137775,1746563476983,-200.0,0.00033151,2]
[360137776,1746563476995,-1000.0,0.00033165,2]
[360137777,1746563477004,-1000.0,0.00033288,7]
[360137778,1746563477013,-1000.0,0.00033288,7]
[360137779,1746563477024,-1000.0,0.00033288,7]
[360137780,1746563477033,-150.0,0.00033309,2]
[360137781,1746563477043,-1000.0,0.00033425,7]
[360137782,1746563477053,-855.0,0.00033425,7]
[360137783,1746563477062,-1000.0,0.00033425,7]
[360137784,1746563477072,-1170.84224976,0.000335,2]
[360137785,1746563477082,-298.26089446,0.0003351,2]
[360137786,1746563477091,-1000.0,0.00033562,7]
[360137787,1746563477100,-500.0,0.00033617,2]
[360137788,1746563477109,-312.0,0.00033674,30]
[360137789,1746563477118,-263.72,0.00033698,2]
[360137790,1746563477127,-1000.0,0.00033699,7]
[360137791,1746563477137,-500.0,0.00033714,120]
[360137792,1746563477146,-302.11792183,0.00033753,2]
[360137793,1746563477156,-9035.0,0.00033784,3]
[360137794,1746563477165,-1000.0,0.00033836,7]
[360137795,1746563477174,-253.0,0.00033836,7]
[360137796,1746563477184,-882.90521937,0.0003387,120]
[360137797,1746563477193,-150.0,0.00033909,120]
[360137798,1746563477203,-4008.81127426,0.00034,2]
[360137799,1746563477212,-1400.0,0.00034,120]
[360137800,1746563477221,-1800.0,0.00034,35]
[360137801,1746563477231,-204.4066,0.00034,7]
[360137802,1746563477241,-232.04,0.00034041,4]
[360137803,1746563477251,-160.0,0.000341,44]
[360137804,1746563477261,-150.0,0.00034102,2]
[360137805,1746563477270,-150.0,0.00034401,120]
[360137806,1746563477280,-150.0,0.00034548,10]
[360137807,1746563477289,-2000.0,0.00034834,31]
[360137808,1746563477299,-309.29654756,0.00034879,2]
[360137809,1746563477308,-333.0,0.00034889,2]
[360137810,1746563477317,-150.0,0.00034895,2]
[360137811,1746563477326,-4015.0,0.00034997,2]
[360137812,1746563477336,-3900.0,0.00035,7]
[360137813,1746563477345,-1016.0,0.00035,4]
[360137814,1746563477354,-1000.0,0.00035,5]
[360137815,1746563477363,-1000.0,0.00035,3]
[360137816,1746563477372,-1007.0,0.00035,3]
[360137817,1746563477381,-1000.0,0.00035,2]
[360137818,1746563477391,-181665.30028086,0.00035,2]
[360137819,1746563477400,-25004.25997607,0.00035,2]
[360137820,1746563477410,-228.15486818,0.00035,2]
[360137821,1746563477419,-3276.61817353,0.00035,30]
[360137822,1746563477428,-1800.0,0.00035,36]
[360137823,1746563477437,-598.18,0.00035,120]
[360137824,1746563477446,-129892.29881476,0.00035,2]
[360137825,1746563477456,-38382.76,0.00035,2]
[360137826,1746563477465,-500.0,0.00035,30]
[360137827,1746563477474,-2000.0,0.00035,120]
[360137828,1746563477483,-888.06546537,0.00035,5]
[360137829,1746563477492,-700.0,0.00035,2]
[360137830,1746563477502,-45133.73,0.00035,14]
[360137831,1746563477511,-244.462873,0.00035,7]
[360137832,1746563477520,-303.035294,0.00035,7]
[360137833,1746563477530,-303.03529407,0.00035,7]
[360137834,1746563477539,-159.55678284,0.00035,7]
[360137835,1746563477548,-151.0,0.00035,7]
[360137836,1746563477558,-413.012657,0.00035,7]
[360137837,1746563477567,-413.01265,0.00035,7]
[360137838,1746563477578,-1834.42246142,0.00035,120]
[360137839,1746563477587,-5000.0,0.00035,2]
[360137840,1746563477597,-14849.92461514,0.00035,7]
[360137841,1746563477606,-263.72,0.00035068,2]
[360137842,1746563477615,-1626.59,0.00035068,2]
[360137843,1746563477624,-974.54,0.00035078,2]
[360137844,1746563477634,-160.0,0.000351,47]
[360137845,1746563477643,-1500.0,0.00035371,5]
[360137846,1746563477652,-1500.0,0.00035371,5]
[360137847,1746563477662,-522.29405343,0.00035371,5]
[360137848,1746563477671,-500.0,0.00035371,5]
[360137849,1746563477680,-1500.0,0.00035471,5]
[360137850,1746563477690,-500.0,0.00035471,5]
[360137851,1746563477699,-150.0,0.00035476,120]
[360137852,1746563477709,-236.0,0.000355,2]
[360137853,1746563477718,-995.4,0.000355,2]
[360137854,1746563477727,-374.0,0.000355,2]
[360137855,1746563477736,-764.0,0.000355,2]
[360137856,1746563477745,-500.0,0.00035503,120]
[360137857,1746563477755,-604.59957544,0.00035562,7]
[360137858,1746563477765,-151.0,0.00035592,7]
[360137859,1746563477774,-2000.0,0.000356,2]
[360137860,1746563477783,-151.0,0.00035616,7]
[360137861,1746563477792,-1000.0,0.00035616,60]
[360137862,1746563477802,-1000.0,0.00035616,60]
[360137863,1746563477811,-1000.0,0.00035616,60]
[360137864,1746563477821,-1000.0,0.00035616,60]
[360137865,1746563477830,-1000.0,0.00035616,60]
[360137866,1746563477840,-1000.0,0.00035616,60]
[360137867,1746563477849,-1000.0,0.00035616,60]
[360137868,1746563477859,-1000.0,0.00035616,60]
[360137869,1746563477868,-312.65005389,0.00035616,60]
[360137870,1746563477877,-150.0,0.00035616,2]
[360137871,1746563477887,-2000.0,0.00035616,90]
[360137872,1746563477897,-2000.0,0.00035616,90]
[360137873,1746563477907,-2000.0,0.00035616,90]
[360137874,1746563477917,-2000.0,0.00035616,90]
[360137875,1746563477926,-2000.0,0.00035616,90]
[360137876,1746563477936,-2000.0,0.00035616,90]
[360137877,1746563477947,-2000.0,0.00035616,90]
[360137878,1746563477956,-2000.0,0.00035616,90]
[360137879,1746563477965,-2000.0,0.00035616,90]
[360137880,1746563477975,-2000.0,0.00035616,90]
[360137881,1746563477983,-2000.0,0.00035616,90]
[360137882,1746563477994,-2000.0,0.00035616,90]
[360137883,1746563478003,-2000.0,0.00035616,90]
[360137884,1746563478012,-2000.0,0.00035616,90]
[360137885,1746563478021,-1267.627815,0.00035616,90]
[360137886,1746563478031,-150.0,0.00035688,2]
[360137887,1746563478040,-1000.0,0.0003574,5]
[360137888,1746563478050,-151.0,0.0003589,7]
[360137889,1746563478059,-203.40333873,0.0003589,7]
[360137890,1746563478068,-13692.7876861,0.0003591,2]
[360137891,1746563478077,-220376.06202759,0.0003593,7]
[360137892,1746563478086,-220195.19280706,0.0003593,7]
[360137893,1746563478095,-119881.50538123,0.0003593,7]
[360137894,1746563478105,-1800.0,0.00036,37]
[360137895,1746563478114,-157936.86062824,0.00036,2]
[360137896,1746563478123,-69390.45568135,0.00036,2]
[360137897,1746563478132,-1000.0,0.00036,120]
[360137898,1746563478141,-801.74093003,0.00036,60]
[360137899,1746563478150,-647.03758027,0.00036,2]
[360137900,1746563478160,-535.1890733,0.00036,120]
[360137901,1746563478170,-492.101993,0.00036,30]
[360137902,1746563478180,-169.0,0.00036,2]
[360137903,1746563478189,-578.54124127,0.00036,60]
[360137904,1746563478199,-1136.42931132,0.00036,2]
[360137905,1746563478208,-213.0,0.00036,2]
[360137906,1746563478217,-160.0,0.000361,49]
[360137907,1746563478227,-320.74051982,0.00036248,2]
[360137908,1746563478236,-500.0,0.00036426,5]
[360137909,1746563478247,-263.72,0.00036438,2]
[360137910,1746563478256,-150.0,0.00036482,2]
[360137911,1746563478266,-500.0,0.000365,2]
[360137912,1746563478275,-161.01347648,0.000365,120]
[360137913,1746563478285,-189.0,0.00036564,30]
[360137914,1746563478295,-189.0,0.00036564,30]
[360137915,1746563478304,-189.0,0.00036564,30]
[360137916,1746563478313,-189.0,0.00036564,30]
[360137917,1746563478323,-189.0,0.00036564,30]
[360137918,1746563478332,-189.0,0.00036564,30]
[360137919,1746563478342,-189.0,0.00036564,30]
[360137920,1746563478352,-189.0,0.00036564,30]
[360137921,1746563478362,-189.0,0.00036564,30]
[360137922,1746563478372,-189.0,0.00036564,30]
[360137923,1746563478382,-189.0,0.00036564,30]
[360137924,1746563478391,-189.0,0.00036564,30]
[360137925,1746563478401,-189.0,0.00036564,30]
[360137926,1746563478410,-189.0,0.00036564,30]
[360137927,1746563478419,-153.0,0.00036564,30]
[360137928,1746563478429,-153.0,0.00036564,30]
[360137929,1746563478438,-153.0,0.00036564,30]
[360137930,1746563478447,-153.0,0.00036564,30]
[360137931,1746563478456,-153.0,0.00036564,30]
[360137932,1746563478465,-153.0,0.00036564,30]
[360137933,1746563478474,-153.0,0.00036564,30]
[360137934,1746563478483,-153.0,0.00036564,30]
[360137935,1746563478493,-153.0,0.00036564,30]
[360137936,1746563478502,-153.0,0.00036564,30]
[360137937,1746563478511,-153.0,0.00036564,30]
[360137938,1746563478636,-189.0,0.00036564,30]
[360137939,1746563478646,-189.0,0.00036564,30]
[360137940,1746563478655,-189.0,0.00036564,30]
[360137941,1746563478664,-189.0,0.00036564,30]
[360137942,1746563478673,-189.0,0.00036564,30]
[360137943,1746563478683,-189.0,0.00036564,30]
[360137944,1746563478693,-189.0,0.00036564,30]
[360137945,1746563478703,-189.0,0.00036564,30]
[360137946,1746563478712,-189.0,0.00036564,30]
[360137947,1746563478722,-189.0,0.00036564,30]
[360137948,1746563478731,-189.0,0.00036564,30]
[360137949,1746563478741,-189.0,0.00036564,30]
[360137950,1746563478751,-189.0,0.00036564,30]
[360137951,1746563478760,-189.0,0.00036564,30]
[360137952,1746563478770,-153.0,0.00036564,30]
[360137953,1746563478780,-153.0,0.00036564,30]
[360137954,1746563478790,-153.0,0.00036564,30]
[360137955,1746563478799,-153.0,0.00036564,30]
[360137956,1746563478809,-153.0,0.00036564,30]
[360137957,1746563478818,-153.0,0.00036564,30]
[360137958,1746563478828,-153.0,0.00036564,30]
[360137959,1746563478837,-153.0,0.00036564,30]
[360137960,1746563478847,-153.0,0.00036564,30]
[360137961,1746563478856,-153.0,0.00036564,30]
[360137962,1746563478865,-153.0,0.00036564,30]
[360137963,1746563478875,-189.0,0.00036564,30]
[360137964,1746563478884,-189.0,0.00036564,30]
[360137965,1746563478894,-189.0,0.00036564,30]
[360137966,1746563478903,-189.0,0.00036564,30]
[360137967,1746563478913,-189.0,0.00036564,30]
[360137968,1746563478923,-189.0,0.00036564,30]
[360137969,1746563478933,-189.0,0.00036564,30]
[360137970,1746563478942,-189.0,0.00036564,30]
[360137971,1746563478954,-189.0,0.00036564,30]
[360137972,1746563478963,-189.0,0.00036564,30]
[360137973,1746563478972,-189.0,0.00036564,30]
[360137974,1746563478981,-189.0,0.00036564,30]
[360137975,1746563478992,-189.0,0.00036564,30]
[360137976,1746563479002,-189.0,0.00036564,30]
[360137977,1746563479011,-153.0,0.00036564,30]
[360137978,1746563479020,-153.0,0.00036564,30]
[360137979,1746563479030,-153.0,0.00036564,30]
[360137980,1746563479039,-153.0,0.00036564,30]
[360137981,1746563479048,-153.0,0.00036564,30]
[360137982,1746563479057,-153.0,0.00036564,30]
[360137983,1746563479066,-153.0,0.00036564,30]
[360137984,1746563479075,-153.0,0.00036564,30]
[360137985,1746563479084,-153.0,0.00036564,30]
[360137986,1746563479093,-153.0,0.00036564,30]
[360137987,1746563479102,-153.0,0.00036564,30]
[360137988,1746563479111,-189.0,0.00036564,30]
[360137989,1746563479119,-189.0,0.00036564,30]
[360137990,1746563479128,-189.0,0.00036564,30]
[360137991,1746563479137,-189.0,0.00036564,30]
[360137992,1746563479146,-189.0,0.00036564,30]
[360137993,1746563479156,-189.0,0.00036564,30]
[360137994,1746563479165,-189.0,0.00036564,30]
[360137995,1746563479174,-189.0,0.00036564,30]
[360137996,1746563479183,-189.0,0.00036564,30]
[360137997,1746563479193,-189.0,0.00036564,30]
[360137998,1746563479202,-189.0,0.00036564,30]
[360137999,1746563479211,-189.0,0.00036564,30]
[360138000,1746563479220,-189.0,0.00036564,30]
[360138001,1746563479229,-189.0,0.00036564,30]
[360138002,1746563479238,-153.0,0.00036564,30]
[360138003,1746563479248,-153.0,0.00036564,30]
[360138004,1746563479257,-153.0,0.00036564,30]
[360138005,1746563479267,-153.0,0.00036564,30]
[360138006,1746563479276,-153.0,0.00036564,30]
[360138007,1746563479285,-153.0,0.00036564,30]
[360138008,1746563479294,-153.0,0.00036564,30]
[360138009,1746563479303,-153.0,0.00036564,30]
[360138010,1746563479312,-153.0,0.00036564,30]
[360138011,1746563479322,-153.0,0.00036564,30]
[360138012,1746563479331,-153.0,0.00036564,30]
[360138013,1746563479340,-189.0,0.00036564,30]
[360138014,1746563479349,-189.0,0.00036564,30]
[360138015,1746563479358,-189.0,0.00036564,30]
[360138016,1746563479368,-189.0,0.00036564,30]
[360138017,1746563479377,-189.0,0.00036564,30]
[360138018,1746563479387,-189.0,0.00036564,30]
[360138019,1746563479396,-189.0,0.00036564,30]
[360138020,1746563479406,-189.0,0.00036564,30]
[360138021,1746563479416,-189.0,0.00036564,30]
[360138022,1746563479426,-189.0,0.00036564,30]
[360138023,1746563479435,-189.0,0.00036564,30]
[360138024,1746563479444,-189.0,0.00036564,30]
[360138025,1746563479454,-189.0,0.00036564,30]
[360138026,1746563479464,-189.0,0.00036564,30]
[360138027,1746563479474,-153.0,0.00036564,30]
[360138028,1746563479484,-153.0,0.00036564,30]
[360138029,1746563479495,-153.0,0.00036564,30]
[360138030,1746563479506,-153.0,0.00036564,30]
[360138031,1746563479516,-153.0,0.00036564,30]
[360138032,1746563479528,-153.0,0.00036564,30]
[360138033,1746563479538,-153.0,0.00036564,30]
[360138034,1746563479547,-153.0,0.00036564,30]
[360138035,1746563479557,-153.0,0.00036564,30]
[360138036,1746563479567,-153.0,0.00036564,30]
[360138037,1746563479577,-153.0,0.00036564,30]
[360138038,1746563479586,-189.0,0.00036566,30]
[360138039,1746563479595,-189.0,0.00036566,30]
[360138040,1746563479605,-189.0,0.00036566,30]
[360138041,1746563479614,-189.0,0.00036566,30]
[360138042,1746563479624,-189.0,0.00036566,30]
[360138043,1746563479634,-189.0,0.00036566,30]
[360138044,1746563479643,-189.0,0.00036566,30]
[360138045,1746563479652,-189.0,0.00036566,30]
[360138046,1746563479661,-189.0,0.00036566,30]
[360138047,1746563479670,-189.0,0.00036566,30]
[360138048,1746563479679,-189.0,0.00036566,30]
[360138049,1746563479688,-189.0,0.00036566,30]
[360138050,1746563479697,-189.0,0.00036566,30]
[360138051,1746563479706,-189.0,0.00036566,30]
[360138052,1746563479715,-153.0,0.00036566,30]
[360138053,1746563479724,-153.0,0.00036566,30]
[360138054,1746563479734,-153.0,0.00036566,30]
[360138055,1746563479746,-153.0,0.00036566,30]
[360138056,1746563479756,-153.0,0.00036566,30]
[360138057,1746563479776,-153.0,0.00036566,30]
[360138058,1746563479787,-153.0,0.00036566,30]
[360138059,1746563479797,-153.0,0.00036566,30]
[360138060,1746563479807,-153.0,0.00036566,30]
[360138061,1746563479816,-153.0,0.00036566,30]
[360138062,1746563479826,-153.0,0.00036566,30]
[360138063,1746563479835,-189.0,0.00036566,30]
[360138064,1746563479845,-189.0,0.00036566,30]
[360138065,1746563479854,-189.0,0.00036566,30]
[360138066,1746563479864,-189.0,0.00036566,30]
[360138067,1746563479874,-189.0,0.00036566,30]
[360138068,1746563479884,-189.0,0.00036566,30]
[360138069,1746563479894,-189.0,0.00036566,30]
[360138070,1746563479903,-189.0,0.00036566,30]
[360138071,1746563479913,-189.0,0.00036566,30]
[360138072,1746563479922,-189.0,0.00036566,30]
[360138073,1746563479932,-189.0,0.00036566,30]
[360138074,1746563479942,-189.0,0.00036566,30]
[360138075,1746563479954,-189.0,0.00036566,30]
[360138076,1746563479963,-153.0,0.00036566,30]
[360138077,1746563479973,-153.0,0.00036566,30]
[360138078,1746563479983,-153.0,0.00036566,30]
[360138079,1746563479993,-153.0,0.00036566,30]
[360138080,1746563480003,-153.0,0.00036566,30]
[360138081,1746563480013,-153.0,0.00036566,30]
[360138082,1746563480023,-153.0,0.00036566,30]
[360138083,1746563480032,-153.0,0.00036566,30]
[360138084,1746563480042,-153.0,0.00036566,30]
[360138085,1746563480052,-153.0,0.00036566,30]
[360138086,1746563480061,-992.28,0.00036712,2]
[360138087,1746563480071,-3000.0,0.00036875,60]
[360138088,1746563480081,-196.70236953,0.00036876,7]
[360138089,1746563480091,-12649.0,0.00036977,3]
[360138090,1746563480100,-992.28,0.00036986,2]
[360138091,1746563480110,-1000.0,0.00037,8]
[360138092,1746563480119,-969.91,0.00037,2]
[360138093,1746563480129,-1800.0,0.00037,38]
[360138094,1746563480139,-750.0,0.00037,2]
[360138095,1746563480150,-160.0,0.000371,52]
[360138096,1746563480159,-578.17946169,0.000372,120]
[360138097,1746563480169,-578.17946168,0.000372,120]
[360138098,1746563480179,-578.17946168,0.000372,120]
[360138099,1746563480189,-578.17946168,0.000372,120]
[360138100,1746563480199,-578.17946168,0.000372,120]
[360138101,1746563480209,-992.28,0.0003726,2]
[360138102,1746563480219,-648.4810324,0.0003726,2]
[360138103,1746563480228,-150.0,0.00037275,2]
[360138104,1746563480237,-603.448821,0.00037291,120]
[360138105,1746563480248,-974.54,0.00037342,2]
[360138106,1746563480257,-1153.62448235,0.0003737,21]
[360138107,1746563480267,-150.0,0.00037416,120]
[360138108,1746563480276,-3000.0,0.00037423,60]
[360138109,1746563480285,-500.0,0.0003752,10]
[360138110,1746563480295,-992.28,0.00037534,2]
[360138111,1746563480304,-4210.05006415,0.0003759,2]
[360138112,1746563480314,-332.60791905,0.00037617,2]
[360138113,1746563480323,-168.60832689,0.000378,2]
[360138114,1746563480332,-3464.15387242,0.000378,2]
[360138115,1746563480342,-263.72,0.00037807,2]
[360138116,1746563480352,-992.28,0.00037808,2]
[360138117,1746563480361,-78001.82790388,0.000379,2]
[360138118,1746563480371,-3000.0,0.00037971,60]
[360138119,1746563480380,-3629.642,0.00037997,2]
[360138120,1746563480390,-1800.0,0.00038,39]
[360138121,1746563480399,-1000.0,0.00038,9]
[360138122,1746563480408,-160.0,0.00038,15]
[360138123,1746563480418,-1000.0,0.00038,120]
[360138124,1746563480427,-2000.0,0.00038,120]
[360138125,1746563480437,-150.0,0.00038068,2]
[360138126,1746563480446,-992.28,0.00038082,2]
[360138127,1746563480455,-160.0,0.000381,55]
[360138128,1746563480464,-376.0,0.000381,2]
[360138129,1746563480474,-1200.0,0.000381,2]
[360138130,1746563480483,-522.0,0.000381,2]
[360138131,1746563480493,-992.28,0.00038356,2]
[360138132,1746563480503,-453.2,0.00038356,2]
[360138133,1746563480512,-453.2,0.00038356,2]
[360138134,1746563480521,-453.2,0.00038356,2]
[360138135,1746563480530,-453.2,0.00038356,2]
[360138136,1746563480540,-453.2,0.00038356,2]
[360138137,1746563480549,-453.2,0.00038356,2]
[360138138,1746563480559,-453.2,0.00038356,2]
[360138139,1746563480569,-453.2,0.00038356,2]
[360138140,1746563480578,-453.2,0.00038356,2]
[360138141,1746563480588,-453.2,0.00038356,2]
[360138142,1746563480598,-453.2,0.00038356,2]
[360138143,1746563480607,-453.2,0.00038356,2]
[360138144,1746563480617,-453.2,0.00038356,2]
[360138145,1746563480627,-453.2,0.00038356,2]
[360138146,1746563480636,-453.2,0.00038356,2]
[360138147,1746563480646,-453.2,0.00038356,2]
[360138148,1746563480656,-453.2,0.00038356,2]
[360138149,1746563480666,-453.2,0.00038356,2]
[360138150,1746563480675,-453.2,0.00038356,2]
[360138151,1746563480684,-453.2,0.00038356,2]
[360138152,1746563480694,-453.2,0.00038356,2]
[360138153,1746563480703,-453.2,0.00038356,2]
[360138154,1746563480712,-453.2,0.00038356,2]
[360138155,1746563480722,-453.42,0.00038356,2]
[360138156,1746563480731,-500.0,0.00038356,2]
[360138157,1746563480741,-440.27114369,0.00038356,7]
[360138158,1746563480752,-150.0,0.00038356,2]
[360138159,1746563480762,-500.0,0.00038383,2]
[360138160,1746563480771,-514.05541154,0.000384,33]
[360138161,1746563480908,-2000.0,0.000384,2]
[360138162,1746563480928,-500.0,0.00038411,2]
[360138163,1746563480938,-500.0,0.00038438,2]
[360138164,1746563480951,-534.54700433,0.00038466,2]
[360138165,1746563480961,-1043.11742174,0.00038479,5]
[360138166,1746563480970,-150.0,0.00038493,120]
[360138167,1746563480980,-3000.0,0.00038519,60]
[360138168,1746563480991,-992.28,0.0003863,2]
[360138169,1746563481001,-8284.28,0.000387,7]
[360138170,1746563481011,-150.0,0.00038861,2]
[360138171,1746563481021,-992.28,0.00038904,2]
[360138172,1746563481031,-1000.0,0.00038933,2]
[360138173,1746563481040,-344.91441206,0.00038986,2]
[360138174,1746563481050,-1800.0,0.00039,40]
[360138175,1746563481059,-184.15440834,0.00039,120]
[360138176,1746563481069,-1030.47145688,0.00039,30]
[360138177,1746563481078,-3076.69272926,0.00039,120]
[360138178,1746563481088,-1426.5609774,0.00039,30]
[360138179,1746563481097,-1000.0,0.00039,120]
[360138180,1746563481107,-6260.7459357,0.00039,10]
[360138181,1746563481116,-195200.75235593,0.00039,5]
[360138182,1746563481126,-62066.084301,0.00039,5]
[360138183,1746563481135,-800.0,0.00039,2]
[360138184,1746563481144,-213.0,0.00039,2]
[360138185,1746563481154,-3000.0,0.00039067,60]
[360138186,1746563481163,-160.0,0.000391,58]
[360138187,1746563481172,-263.72,0.00039177,2]
[360138188,1746563481182,-992.28,0.00039178,2]
[360138189,1746563481192,-984.57939112,0.00039178,30]
[360138190,1746563481202,-500.0,0.00039234,5]
[360138191,1746563481212,-419.0,0.00039443,7]
[360138192,1746563481221,-992.28,0.00039452,2]
[360138193,1746563481231,-3000.0,0.00039498,31]
[360138194,1746563481240,-500.0,0.000395,30]
[360138195,1746563481250,-974.54,0.00039606,2]
[360138196,1746563481260,-150.0,0.00039654,2]
[360138197,1746563481269,-154.0,0.00039724,7]
[360138198,1746563481278,-329.0,0.00039724,14]
[360138199,1746563481288,-992.28,0.00039726,2]
[360138200,1746563481298,-222.22222,0.000398,120]
[360138201,1746563481308,-29997.52429364,0.000398,120]
[360138202,1746563481317,-150.0,0.000398,120]
[360138203,1746563481327,-150.0,0.000398,120]
[360138204,1746563481336,-5111.27304,0.0003985,20]
[360138205,1746563481346,-4809.61358847,0.00039855,120]
[360138206,1746563481355,-340.95785928,0.00039855,120]
[360138207,1746563481364,-1048.65744592,0.00039855,120]
[360138208,1746563481374,-3300.96893494,0.0003988,120]
[360138209,1746563481384,-200.0,0.00039969,14]
[360138210,1746563481393,-999.999999,0.0003997,15]
[360138211,1746563481403,-437.0,0.00039986,90]
[360138212,1746563481413,-750.0,0.00039998,7]
[360138213,1746563481422,-50000.0,0.0004,40]
[360138214,1746563481432,-5000.0,0.0004,7]
[360138215,1746563481441,-992.28,0.0004,2]
[360138216,1746563481451,-592.10089912,0.0004,2]
[360138217,1746563481460,-16670.96558972,0.0004,2]